bitfinex/quotes_BTCUSD_20241226
["timestamp","ask_amount","ask_price","bid_price","bid_amount"]
[1735245201006,0.25081365,95671.0,95665.0,0.209061]
[1735245201218,0.00089861,95670.0,95665.0,0.209061]
[1735245201503,0.02636984,95670.0,95665.0,0.209061]
[1735245202568,0.02936984,95670.0,95665.0,0.209061]
[1735245202798,0.02936984,95670.0,95664.0,0.209063]
[1735245203031,0.00389861,95670.0,95660.0,0.22210608]
[1735245203263,0.00389861,95670.0,95668.0,0.209054]
[1735245203761,0.02097484,95669.0,95668.0,0.209054]
[1735245204151,0.002,95670.0,95668.0,0.209054]
[1735245204288,0.003,95670.0,95668.0,0.209054]
[1735245204484,0.002,95670.0,95668.0,0.209054]
[1735245204726,0.002,95670.0,95661.0,0.209071]
[1735245204927,0.00589861,95670.0,95662.0,0.209069]
[1735245205492,0.00289861,95670.0,95648.0,0.023]
[1735245205695,0.10488493,95670.0,95663.0,0.418133]
[1735245205963,0.00389861,95670.0,95663.0,0.418133]
[1735245206201,0.00589861,95670.0,95667.0,0.209057]
[1735245206582,0.00389861,95670.0,95667.0,0.209057]
[1735245206935,0.00589861,95670.0,95667.0,0.209057]
[1735245207290,0.00289861,95670.0,95667.0,0.209057]
[1735245207490,0.00389861,95670.0,95667.0,0.209057]
[1735245207919,0.00589861,95670.0,95667.0,0.209057]
[1735245208123,0.00889861,95670.0,95665.0,0.01321554]
[1735245208335,0.00889861,95670.0,95664.0,0.209064]
[1735245208497,0.00889861,95670.0,95667.0,0.209057]
[1735245209090,0.00689861,95670.0,95667.0,0.209057]
[1735245209291,0.00889861,95670.0,95667.0,0.209057]
[1735245209686,0.00689861,95670.0,95667.0,0.209057]
[1735245209918,0.00689861,95670.0,95665.0,0.209062]
[1735245210076,0.10488493,95669.0,95659.0,0.209075]
[1735245210272,0.10488493,95669.0,95650.0,0.15]
[1735245210481,0.10488493,95669.0,95665.0,0.20906]
[1735245211317,0.10474348,95669.0,95665.0,0.20906]
[1735245211542,0.10774348,95669.0,95665.0,0.20906]
[1735245212752,0.10774348,95669.0,95664.0,0.209064]
[1735245213074,0.10874348,95669.0,95664.0,0.209064]
[1735245213251,0.10874348,95669.0,95665.0,0.20906]
[1735245213611,0.10774348,95669.0,95665.0,0.20906]
[1735245213860,0.13040345,95669.0,95665.0,0.20906]
[1735245214061,0.10574348,95669.0,95665.0,0.418122]
[1735245214294,0.10874348,95669.0,95665.0,0.418122]
[1735245214474,0.10574348,95669.0,95665.0,0.418122]
[1735245214909,0.10874348,95669.0,95665.0,0.20906]
[1735245215467,0.02535997,95668.0,95665.0,0.20906]
[1735245215675,0.00089861,95667.0,95665.0,0.20906]
[1735245215911,0.00089861,95667.0,95662.0,0.209068]
[1735245216354,0.00089861,95667.0,95662.0,0.418137]
[1735245216812,0.0453,95664.0,95644.0,0.209108]
[1735245216972,0.09184123,95660.0,95648.0,0.209098]
[1735245217176,0.0819,95658.0,95650.0,0.209094]
[1735245217382,0.10488493,95657.0,95650.0,0.209094]
[1735245217787,0.10488493,95657.0,95641.0,8.56e-05]
[1735245217948,0.12809342,95657.0,95645.0,0.209106]
[1735245218149,0.0819,95656.0,95645.0,0.209106]
[1735245218348,0.0819,95654.0,95645.0,0.209106]
[1735245218549,0.10488493,95653.0,95645.0,0.209106]
[1735245218812,0.02120124,95651.0,95645.0,0.209106]
[1735245219117,0.10488493,95650.0,95645.0,0.209106]
[1735245220716,0.10988493,95650.0,95645.0,0.209106]
[1735245220931,0.10588493,95650.0,95645.0,0.209106]
[1735245221292,0.10888493,95650.0,95645.0,0.209106]
[1735245221493,0.10888493,95650.0,95646.0,0.209104]
[1735245221925,0.10788493,95650.0,95646.0,0.209104]
[1735245222102,0.10888493,95650.0,95646.0,0.209104]
[1735245222503,0.10788493,95650.0,95646.0,0.209104]
[1735245222706,0.10788493,95650.0,95641.0,8.56e-05]
[1735245222916,0.1293044,95650.0,95641.0,8.56e-05]
[1735245223341,0.10688493,95650.0,95647.0,0.209101]
[1735245223720,0.10788493,95650.0,95647.0,0.209101]
[1735245223946,0.11088493,95650.0,95647.0,0.209101]
[1735245224158,0.10888493,95650.0,95647.0,0.209101]
[1735245224605,0.11188493,95650.0,95647.0,0.209101]
[1735245224905,0.11088493,95650.0,95647.0,0.209101]
[1735245225178,0.11288493,95650.0,95647.0,0.209101]
[1735245225711,0.13448355,95650.0,95647.0,0.209101]
[1735245226614,0.13448355,95650.0,95641.0,8.56e-05]
[1735245226765,0.0453,95649.0,95641.0,8.56e-05]
[1735245226967,0.0819,95647.0,95641.0,8.56e-05]
[1735245227170,0.0453,95649.0,95641.0,8.56e-05]
[1735245227171,0.03,95645.0,95641.0,8.56e-05]
[1735245227381,0.21906753,95644.0,95641.0,8.56e-05]
[1735245228798,0.1272,95643.0,95641.0,8.56e-05]
[1735245229004,0.18678493,95642.0,95641.0,8.56e-05]
[1735245231537,0.19878493,95642.0,95641.0,0.0010856]
[1735245233011,0.19878493,95642.0,95629.0,8.56e-05]
[1735245233191,0.19878493,95642.0,95629.0,0.00024063]
[1735245233750,0.19878493,95642.0,95631.0,0.209135]
[1735245234164,0.19078493,95642.0,95631.0,0.209135]
[1735245234564,0.13849342,95642.0,95629.0,0.00124063]
[1735245234766,0.0808,95641.0,95629.0,0.00124063]
[1735245235083,0.10488493,95640.0,95629.0,0.00124063]
[1735245235280,0.0808,95639.0,95629.0,0.00124063]
[1735245235529,0.10488493,95638.0,95629.0,0.00124063]
[1735245235698,0.02645934,95637.0,95629.0,0.00024063]
[1735245235898,0.10488493,95636.0,95629.0,0.00024063]
[1735245236101,0.10488493,95636.0,95631.0,0.001]
[1735245236312,0.10488493,95636.0,95629.0,0.00024063]
[1735245236515,0.10488493,95636.0,95629.0,0.00124063]
[1735245236912,0.13642066,95636.0,95629.0,0.00024063]
[1735245237111,0.14142066,95636.0,95629.0,0.00024063]
[1735245237719,0.0808,95635.0,95629.0,0.00024063]
[1735245237886,0.049,95633.0,95629.0,0.00024063]
[1735245238081,0.10488493,95632.0,95629.0,0.00024063]
[1735245238303,0.02742207,95631.0,95629.0,0.00024063]
[1735245238508,0.10488493,95630.0,95629.0,0.00024063]
[1735245239254,0.12615483,95630.0,95629.0,0.00024063]
[1735245239673,0.19201243,95650.0,95629.0,0.00024063]
[1735245239674,0.003,95632.0,95629.0,0.00024063]
[1735245239806,0.0001712,95650.0,95631.0,0.023]
[1735245240015,0.10398632,95649.0,95629.0,0.01643567]
[1735245240216,0.002,95630.0,95629.0,0.35938163]
[1735245241002,0.003,95630.0,95629.0,0.35938163]
[1735245241196,0.001,95630.0,95629.0,0.35938163]
[1735245242258,0.02088843,95640.0,95639.0,0.209119]
[1735245243941,0.02088843,95640.0,95637.0,0.209123]
[1735245244540,0.02088843,95640.0,95639.0,8.56e-05]
[1735245244746,0.02088843,95640.0,95639.0,0.2092046]
[1735245245674,0.00089861,95648.0,95639.0,0.2092046]
[1735245245882,0.00089861,95648.0,95645.0,0.209105]
[1735245245883,0.10398632,95647.0,95645.0,0.209105]
[1735245246081,0.00089861,95646.0,95645.0,0.209105]
[1735245246285,0.00089861,95646.0,95639.0,8.56e-05]
[1735245246286,0.14429872,95646.0,95643.0,0.20911]
[1735245246493,0.18088632,95645.0,95640.0,0.209116]
[1735245246666,0.18088632,95645.0,95639.0,8.56e-05]
[1735245246667,0.0769,95642.0,95639.0,8.56e-05]
[1735245246874,0.0495,95643.0,95629.0,0.00024063]
[1735245246875,0.0769,95640.0,95629.0,0.00024063]
[1735245247071,0.0769,95638.0,95629.0,0.00024063]
[1735245247269,0.0769,95631.0,95629.0,0.00024063]
[1735245247465,0.10488493,95630.0,95629.0,0.00024063]
[1735245247870,0.10488493,95630.0,95621.0,0.209157]
[1735245248073,0.1049366,95630.0,95621.0,0.209157]
[1735245248492,0.1049366,95630.0,95601.0,0.2092876]
[1735245248493,0.1049366,95630.0,95617.0,0.209167]
[1735245248760,0.04231778,95629.0,95617.0,0.209167]
[1735245248957,0.10488493,95628.0,95617.0,0.209167]
[1735245250279,0.10888493,95628.0,95621.0,0.209158]
[1735245250476,0.004,95628.0,95625.0,0.209149]
[1735245250730,0.004,95628.0,95626.0,0.173]
[1735245250936,0.004,95628.0,95627.0,0.382145]
[1735245251139,6.7e-07,95630.0,95628.0,0.173]
[1735245251323,6.7e-07,95630.0,95629.0,0.56267281]
[1735245251530,6.7e-07,95630.0,95629.0,0.56162732]
[1735245252423,6.7e-07,95630.0,95629.0,0.457641]
[1735245252977,0.00100067,95630.0,95629.0,0.466641]
[1735245253826,6.7e-07,95630.0,95629.0,0.457641]
[1735245254056,0.00100067,95630.0,95629.0,0.388141]
[1735245254251,0.00100067,95630.0,95629.0,0.392141]
[1735245254701,0.00100067,95630.0,95629.0,0.388141]
[1735245255123,0.00100067,95630.0,95629.0,0.391141]
[1735245255299,6.7e-07,95630.0,95629.0,0.385141]
[1735245255499,0.00100067,95630.0,95629.0,0.391141]
[1735245255711,6.7e-07,95630.0,95629.0,0.382141]
[1735245255917,6.7e-07,95630.0,95629.0,0.385141]
[1735245256194,0.00100067,95630.0,95629.0,0.391141]
[1735245256399,0.00100067,95630.0,95629.0,0.385141]
[1735245256608,0.00100067,95630.0,95629.0,0.390141]
[1735245257427,0.00100067,95630.0,95629.0,0.387141]
[1735245257637,0.00100067,95630.0,95629.0,0.3872266]
[1735245258207,6.7e-07,95630.0,95629.0,0.2112266]
[1735245258387,6.7e-07,95630.0,95629.0,0.2092266]
[1735245258619,6.7e-07,95630.0,95629.0,0.2142266]
[1735245258820,6.7e-07,95630.0,95629.0,0.2162266]
[1735245259255,6.7e-07,95630.0,95629.0,0.2142266]
[1735245259454,6.7e-07,95630.0,95629.0,0.2112266]
[1735245259627,6.7e-07,95630.0,95629.0,0.2162266]
[1735245260716,6.7e-07,95630.0,95629.0,0.2142266]
[1735245261028,6.7e-07,95630.0,95629.0,0.2152266]
[1735245261236,6.7e-07,95630.0,95629.0,0.2102266]
[1735245261440,6.7e-07,95630.0,95629.0,0.2122266]
[1735245261805,6.7e-07,95630.0,95629.0,0.2132266]
[1735245262192,6.7e-07,95630.0,95629.0,0.2122266]
[1735245262369,6.7e-07,95630.0,95629.0,0.2092266]
[1735245262547,6.7e-07,95630.0,95629.0,0.2132266]
[1735245262748,6.7e-07,95630.0,95629.0,0.0040856]
[1735245263472,6.7e-07,95630.0,95629.0,0.2132266]
[1735245263814,6.7e-07,95630.0,95629.0,0.2122266]
[1735245264279,6.7e-07,95630.0,95629.0,0.2092266]
[1735245264478,6.7e-07,95630.0,95629.0,0.2102266]
[1735245267737,6.7e-07,95630.0,95629.0,0.001]
[1735245267935,6.7e-07,95630.0,95629.0,0.02504566]
[1735245268136,6.7e-07,95630.0,95629.0,0.46108666]
[1735245268380,8.7e-07,95631.0,95629.0,0.460041]
[1735245268505,8.7e-07,95631.0,95630.0,0.27803171]
[1735245268709,8.7e-07,95631.0,95630.0,0.27698632]
[1735245269419,8.7e-07,95631.0,95630.0,0.82328632]
[1735245270894,8.7e-07,95631.0,95630.0,0.82428632]
[1735245271074,8.7e-07,95631.0,95630.0,0.91612755]
[1735245271477,8.7e-07,95631.0,95630.0,0.91712755]
[1735245271698,0.02200733,95667.0,95649.0,0.209097]
[1735245273671,0.00089861,95664.0,95649.0,0.209097]
[1735245274076,0.00089861,95664.0,95649.0,0.216097]
[1735245274509,0.00089861,95664.0,95649.0,0.219097]
[1735245274917,0.00089861,95664.0,95649.0,0.212097]
[1735245275114,0.00089861,95664.0,95649.0,0.219097]
[1735245275342,0.00089861,95664.0,95649.0,0.212097]
[1735245275725,0.00089861,95664.0,95649.0,0.216097]
[1735245275996,0.00089861,95664.0,95649.0,0.213097]
[1735245276512,0.04779861,95665.0,95649.0,0.214097]
[1735245276756,0.0469,95665.0,95649.0,0.237097]
[1735245276867,0.083,95677.0,95649.0,0.457297]
[1735245277091,0.10420993,95677.0,95649.0,0.457297]
[1735245277261,2e-07,95650.0,95649.0,0.56728332]
[1735245277464,2e-07,95650.0,95649.0,0.459297]
[1735245277666,2e-07,95650.0,95649.0,0.463297]
[1735245277889,2e-07,95650.0,95649.0,0.466297]
[1735245278082,2e-07,95650.0,95649.0,0.385097]
[1735245278286,2e-07,95650.0,95649.0,0.366097]
[1735245278667,2e-07,95650.0,95649.0,0.362097]
[1735245278932,2e-07,95650.0,95649.0,0.366097]
[1735245279095,2e-07,95650.0,95649.0,0.363097]
[1735245279491,2e-07,95650.0,95649.0,0.214097]
[1735245279935,2e-07,95650.0,95649.0,0.213097]
[1735245280331,2e-07,95650.0,95649.0,0.214097]
[1735245280862,2e-07,95650.0,95649.0,0.210097]
[1735245281181,2e-07,95650.0,95649.0,0.213097]
[1735245283006,0.01311022,95650.0,95649.0,0.213097]
[1735245283425,2e-07,95650.0,95649.0,0.213097]
[1735245283627,2e-07,95650.0,95649.0,0.212097]
[1735245284661,2e-07,95650.0,95649.0,0.209097]
[1735245285955,2e-07,95650.0,95649.0,0.211097]
[1735245286358,2e-07,95650.0,95649.0,0.212097]
[1735245287783,2e-07,95650.0,95649.0,0.003]
[1735245288402,2e-07,95650.0,95649.0,0.212097]
[1735245289338,2e-07,95650.0,95649.0,0.383097]
[1735245289540,2e-07,95650.0,95649.0,0.382097]
[1735245289656,2e-07,95650.0,95649.0,0.385097]
[1735245290064,2e-07,95650.0,95649.0,0.382097]
[1735245290512,2e-07,95650.0,95649.0,0.383097]
[1735245291594,2e-07,95650.0,95649.0,0.366097]
[1735245291808,2e-07,95650.0,95649.0,0.359097]
[1735245292006,2e-07,95650.0,95649.0,0.364097]
[1735245292203,2e-07,95650.0,95649.0,0.373097]
[1735245292409,2e-07,95650.0,95649.0,0.359097]
[1735245292807,2e-07,95650.0,95649.0,0.365097]
[1735245293008,2e-07,95650.0,95649.0,0.362097]
[1735245293216,2e-07,95650.0,95649.0,0.359097]
[1735245293409,2e-07,95650.0,95649.0,0.364097]
[1735245293657,2e-07,95650.0,95649.0,0.366097]
[1735245294864,2e-07,95650.0,95649.0,0.359097]
[1735245295067,2e-07,95650.0,95649.0,0.211097]
[1735245295650,0.05803022,95650.0,95649.0,0.007]
[1735245296034,0.05803022,95650.0,95649.0,0.002]
[1735245296221,0.05803022,95650.0,95649.0,0.003]
[1735245296417,0.05803022,95650.0,95649.0,0.001]
[1735245296630,0.05803022,95650.0,95649.0,0.0010855]
[1735245297742,0.0498002,95650.0,95644.0,0.209108]
[1735245298288,0.0498002,95650.0,95649.0,0.001]
[1735245298622,0.0498002,95650.0,95647.0,0.418202]
[1735245299347,0.0498002,95650.0,95649.0,0.001]
[1735245299902,2e-07,95650.0,95649.0,0.001]
[1735245300031,2e-07,95650.0,95649.0,0.02504536]
[1735245300239,2e-07,95650.0,95649.0,0.001]
[1735245300820,2e-07,95650.0,95647.0,0.418202]
[1735245301040,2e-07,95650.0,95647.0,0.420202]
[1735245301475,2e-07,95650.0,95647.0,0.418202]
[1735245301674,2e-07,95650.0,95649.0,0.001]
[1735245302054,2e-07,95650.0,95647.0,0.418202]
[1735245302264,2e-07,95650.0,95647.0,0.419202]
[1735245302675,2e-07,95650.0,95649.0,0.382097]
[1735245303488,2e-07,95650.0,95649.0,0.385097]
[1735245304186,2e-07,95650.0,95649.0,0.362097]
[1735245304392,2e-07,95650.0,95649.0,0.369097]
[1735245304607,2e-07,95650.0,95649.0,0.385097]
[1735245304816,2e-07,95650.0,95649.0,0.382097]
[1735245305018,2e-07,95650.0,95649.0,0.395097]
[1735245305195,2e-07,95650.0,95649.0,0.386097]
[1735245305558,2e-07,95650.0,95649.0,0.387097]
[1735245305760,2e-07,95650.0,95649.0,0.382097]
[1735245305960,2e-07,95650.0,95649.0,0.386097]
[1735245306173,2e-07,95650.0,95649.0,0.395097]
[1735245306489,2e-07,95650.0,95649.0,0.391097]
[1735245306697,2e-07,95650.0,95649.0,0.395097]
[1735245307394,2e-07,95650.0,95649.0,0.386097]
[1735245307980,2e-07,95650.0,95649.0,0.382097]
[1735245308178,2e-07,95650.0,95649.0,0.384097]
[1735245308406,2e-07,95650.0,95649.0,0.385097]
[1735245308611,0.0769002,95650.0,95649.0,0.212097]
[1735245308833,0.23697654,95650.0,95649.0,0.008]
[1735245308989,0.23697654,95650.0,95647.0,8.55e-05]
[1735245309176,0.13299022,95650.0,95649.0,0.009]
[1735245309373,0.23697654,95650.0,95649.0,0.009]
[1735245309588,0.23697654,95650.0,95649.0,0.007]
[1735245309793,0.0769,95649.0,95637.0,0.09374495]
[1735245310000,0.0769,95647.0,95637.0,0.09374495]
[1735245310220,0.10398632,95648.0,95629.0,0.44362357]
[1735245310221,0.0769,95645.0,95629.0,0.20936167]
[1735245310587,0.0484,95635.0,95629.0,0.00022067]
[1735245310792,0.10398632,95634.0,95629.0,0.00022067]
[1735245310995,0.04211276,95633.0,95629.0,0.00022067]
[1735245311175,0.10398632,95632.0,95629.0,0.00022067]
[1735245311415,0.00089861,95631.0,95629.0,0.00022067]
[1735245311625,0.10488493,95631.0,95630.0,0.0010856]
[1735245311800,0.10488493,95631.0,95630.0,8.56e-05]
[1735245311936,0.10488493,95631.0,95630.0,0.0010856]
[1735245312339,0.10488493,95631.0,95630.0,8.56e-05]
[1735245312588,0.1321147,95631.0,95630.0,8.56e-05]
[1735245312788,0.0769,95630.0,95601.0,8.56e-05]
[1735245312960,0.09184123,95620.0,95617.0,0.00051777]
[1735245313309,0.10488493,95619.0,95617.0,0.00051777]
[1735245313682,0.10488493,95619.0,95618.0,0.209165]
[1735245313887,0.10398632,95619.0,95618.0,0.209165]
[1735245314240,0.0769,95630.0,95625.0,0.20915]
[1735245314447,0.0769,95630.0,95627.0,0.209145]
[1735245314755,0.0769,95630.0,95627.0,0.41829]
[1735245315816,0.0769,95630.0,95627.0,0.42029]
[1735245316181,0.0484,95635.0,95634.0,0.20913]
[1735245316357,0.15238632,95635.0,95634.0,0.20913]
[1735245317843,0.15238632,95635.0,95629.0,0.209141]
[1735245318179,0.10488493,95634.0,95629.0,0.418282]
[1735245319644,0.10688493,95634.0,95629.0,0.418282]
[1735245319856,0.10598632,95634.0,95629.0,0.418282]
[1735245320258,0.10688493,95634.0,95629.0,0.418282]
[1735245320431,0.00089861,95633.0,95629.0,0.209141]
[1735245320838,0.10598632,95634.0,95629.0,0.209141]
[1735245320839,0.10488493,95634.0,95629.0,0.418282]
[1735245321068,0.00089861,95633.0,95629.0,0.418282]
[1735245321276,0.10515752,95634.0,95629.0,0.418282]
[1735245321452,0.10415752,95634.0,95629.0,0.418282]
[1735245321787,0.002,95633.0,95629.0,0.418282]
[1735245322531,0.02366575,95633.0,95629.0,0.418282]
[1735245322736,0.02366575,95633.0,95629.0,0.209141]
[1735245323254,0.10615752,95634.0,95629.0,0.209141]
[1735245323505,0.10705613,95634.0,95629.0,0.209141]
[1735245323632,0.10705613,95634.0,95629.0,0.418282]
[1735245323833,0.10505613,95634.0,95629.0,0.418282]
[1735245324243,0.002,95633.0,95629.0,0.418282]
[1735245324994,0.10505613,95634.0,95629.0,0.418282]
[1735245325512,0.002,95633.0,95629.0,0.418282]
[1735245325684,0.00289861,95633.0,95629.0,0.418282]
[1735245326087,0.02375561,95632.0,95629.0,0.418282]
[1735245328345,0.02475561,95632.0,95629.0,0.418282]
[1735245329157,0.02475561,95632.0,95629.0,0.209141]
[1735245329365,0.10398632,95631.0,95627.0,8.56e-05]
[1735245329589,0.0824,95629.0,95627.0,8.56e-05]
[1735245329769,0.10488493,95628.0,95627.0,8.56e-05]
[1735245331640,0.10888493,95628.0,95627.0,8.56e-05]
[1735245332766,0.10888493,95628.0,95621.0,0.209157]
[1735245333500,0.10888493,95628.0,95617.0,0.00051777]
[1735245333629,0.13302822,95628.0,95622.0,0.209156]
[1735245333864,0.0213464,95625.0,95622.0,0.209156]
[1735245334078,0.10488493,95624.0,95622.0,0.209156]
[1735245335003,0.10488493,95624.0,95622.0,0.2092416]
[1735245337269,0.10588493,95624.0,95622.0,0.2092416]
[1735245337955,0.10588493,95624.0,95622.0,8.56e-05]
[1735245338179,0.10588493,95624.0,95622.0,0.2092416]
[1735245339526,0.10498632,95624.0,95622.0,0.2092416]
[1735245341635,0.001,95624.0,95622.0,0.2092416]
[1735245343092,0.02201622,95628.0,95627.0,0.209145]
[1735245345716,0.0001712,95628.0,95627.0,0.209145]
[1735245346864,0.12038467,95628.0,95622.0,8.56e-05]
[1735245346971,0.10398632,95627.0,95622.0,8.56e-05]
[1735245347176,0.00089861,95626.0,95622.0,0.2092416]
[1735245347378,0.10398632,95625.0,95622.0,0.2092416]
[1735245347576,0.00089861,95624.0,95622.0,0.2092416]
[1735245347803,0.10488493,95624.0,95617.0,0.00051777]
[1735245348159,0.10488493,95624.0,95618.0,0.209165]
[1735245348296,0.10488493,95624.0,95622.0,0.209156]
[1735245350155,0.10588493,95624.0,95622.0,0.209156]
[1735245351041,0.12685498,95624.0,95618.0,0.209165]
[1735245351204,0.10398632,95623.0,95617.0,0.00051777]
[1735245351429,0.12199861,95622.0,95617.0,0.00051777]
[1735245351594,0.10398632,95621.0,95617.0,0.00051777]
[1735245351812,0.02569411,95620.0,95617.0,0.00051777]
[1735245351977,0.10398632,95619.0,95617.0,0.00051777]
[1735245352182,0.00089861,95618.0,95617.0,0.00051777]
[1735245352379,0.10488493,95618.0,95617.0,0.00051777]
[1735245353155,0.0754712,95634.0,95617.0,0.00051777]
[1735245353417,0.0754712,95634.0,95627.0,0.209145]
[1735245353418,0.0001712,95634.0,95627.0,0.209145]
[1735245353676,0.10415752,95628.0,95625.0,0.209149]
[1735245353930,0.00089861,95627.0,95625.0,0.209149]
[1735245356637,0.00289861,95627.0,95625.0,0.209149]
[1735245357773,0.00289861,95627.0,95620.0,0.20916]
[1735245358756,0.00289861,95627.0,95625.0,0.209149]
[1735245358952,0.02281561,95626.0,95625.0,0.209149]
[1735245359212,0.02281561,95626.0,95620.0,0.20916]
[1735245359213,0.0829,95625.0,95617.0,0.00051777]
[1735245359420,0.1298,95623.0,95622.0,8.56e-05]
[1735245359629,0.23378632,95623.0,95622.0,8.56e-05]
[1735245359835,0.2298,95618.0,95617.0,1e-08]
[1735245360049,0.1,95602.0,95601.0,8.56e-05]
[1735245360279,0.38688632,95602.0,95601.0,0.00013727]
[1735245360494,0.1,95599.0,95598.0,0.06562116]
[1735245360734,0.47300336,95599.0,95598.0,0.06562116]
[1735245360954,0.66900475,95599.0,95598.0,0.06562116]
[1735245361403,0.1,95596.0,95576.0,0.209256]
[1735245361569,0.09184123,95591.0,95576.0,0.209256]
[1735245361788,0.10488493,95590.0,95581.0,0.2093305]
[1735245362003,0.01048849,95589.0,95581.0,0.2093305]
[1735245362242,0.10488493,95588.0,95581.0,8.55e-05]
[1735245362691,0.0829,95587.0,95581.0,8.55e-05]
[1735245362928,0.10488493,95586.0,95581.0,8.55e-05]
[1735245365494,0.10488493,95586.0,95582.0,0.209244]
[1735245365716,0.01982734,95585.0,95581.0,8.55e-05]
[1735245365911,0.10488493,95584.0,95581.0,8.55e-05]
[1735245366185,0.10398632,95584.0,95581.0,8.55e-05]
[1735245366613,0.10398632,95584.0,95582.0,0.209244]
[1735245367021,0.10398632,95584.0,95581.0,8.55e-05]
[1735245367381,0.12590654,95584.0,95581.0,8.55e-05]
[1735245367734,0.12590654,95584.0,95578.0,0.209253]
[1735245368276,0.10498632,95584.0,95578.0,0.209253]
[1735245368481,0.00089861,95583.0,95578.0,0.209253]
[1735245368679,0.10398632,95582.0,95578.0,0.209253]
[1735245369852,0.10798632,95582.0,95578.0,0.209253]
[1735245371268,0.10898632,95582.0,95578.0,0.209253]
[1735245371512,0.10898632,95582.0,95579.0,0.20925]
[1735245371513,0.005,95582.0,95579.0,0.20925]
[1735245371895,0.005,95582.0,95579.0,0.4185]
[1735245372104,0.005,95582.0,95581.0,0.209246]
[1735245372313,0.004,95582.0,95581.0,0.209246]
[1735245372720,0.00089861,95607.0,95602.0,0.209199]
[1735245372926,0.11705618,95606.0,95602.0,0.209199]
[1735245373082,0.00089861,95605.0,95602.0,0.209199]
[1735245373282,0.10398632,95604.0,95602.0,0.209199]
[1735245373486,0.10488493,95604.0,95602.0,0.209199]
[1735245373730,0.10398632,95604.0,95602.0,0.209199]
[1735245373910,0.02008548,95603.0,95602.0,0.209199]
[1735245374110,0.1240718,95603.0,95602.0,0.209199]
[1735245374279,0.14451587,95603.0,95602.0,0.209199]
[1735245375105,0.14951587,95603.0,95602.0,0.209199]
[1735245375515,0.15251587,95603.0,95602.0,0.209199]
[1735245376169,0.15251587,95603.0,95599.0,0.209206]
[1735245376399,0.10398632,95600.0,95581.0,8.56e-05]
[1735245376605,0.00089861,95599.0,95581.0,8.56e-05]
[1735245376811,0.10398632,95598.0,95582.0,0.209243]
[1735245377031,0.00089861,95597.0,95582.0,0.209243]
[1735245377252,0.008,95603.0,95584.0,0.0786]
[1735245377458,0.12528467,95603.0,95585.0,0.023]
[1735245377666,0.002,95600.0,95586.0,0.41847]
[1735245377871,0.002,95600.0,95599.0,0.209207]
[1735245379169,0.0469,95611.0,95585.0,0.023]
[1735245379460,0.10398632,95610.0,95607.0,0.209187]
[1735245379747,0.10398632,95610.0,95603.0,0.209196]
[1735245379748,0.0001712,95628.0,95603.0,0.209198]
[1735245379956,0.10398632,95627.0,95622.0,0.209156]
[1735245380174,0.10488493,95626.0,95618.0,0.209165]
[1735245380800,0.10504008,95626.0,95618.0,0.209165]
[1735245381661,0.10904008,95626.0,95618.0,0.209165]
[1735245382090,0.11204008,95626.0,95618.0,0.209165]
[1735245382926,0.11204008,95626.0,95603.0,0.209198]
[1735245383156,0.03205449,95625.0,95603.0,0.209198]
[1735245383381,0.03205449,95625.0,95581.0,8.56e-05]
[1735245383382,0.0805,95619.0,95581.0,8.56e-05]
[1735245383610,0.15088493,95618.0,95604.0,0.209195]
[1735245384014,0.15088493,95618.0,95609.0,0.209183]
[1735245384015,0.02044254,95613.0,95609.0,0.209183]
[1735245384223,0.10488493,95612.0,95609.0,0.209183]
[1735245384449,0.046,95618.0,95617.0,0.209167]
[1735245384625,0.14998632,95618.0,95617.0,0.209167]
[1735245384847,0.16584177,95618.0,95617.0,0.209167]
[1735245385264,0.00015515,95626.0,95625.0,0.20915]
[1735245385464,0.10414147,95626.0,95625.0,0.20915]
[1735245385666,0.12520862,95626.0,95621.0,0.209157]
[1735245385869,0.10398632,95625.0,95624.0,0.209152]
[1735245386224,0.10415752,95625.0,95624.0,0.209152]
[1735245386626,0.12936262,95625.0,95624.0,0.209152]
[1735245386832,0.12936262,95625.0,95622.0,0.209156]
[1735245387052,0.13026123,95625.0,95622.0,0.209156]
[1735245387460,0.00089861,95624.0,95621.0,0.209158]
[1735245387670,0.02851547,95623.0,95621.0,0.209158]
[1735245387875,0.02851547,95623.0,95605.0,0.023]
[1735245388197,0.02851547,95623.0,95621.0,0.209158]
[1735245390214,0.10488493,95624.0,95621.0,0.418316]
[1735245390215,0.10398632,95624.0,95621.0,0.418316]
[1735245391119,0.10398632,95624.0,95621.0,0.209158]
[1735245392759,0.10398632,95624.0,95619.0,0.209162]
[1735245393798,0.10398632,95624.0,95621.0,0.209159]
[1735245394001,0.0001712,95625.0,95621.0,0.209159]
[1735245394206,0.0001712,95625.0,95621.0,0.418318]
[1735245394900,0.0001712,95625.0,95621.0,0.420318]
[1735245395031,0.0001712,95625.0,95621.0,0.418318]
[1735245395233,0.0001712,95625.0,95621.0,0.419318]
[1735245395716,0.10398632,95624.0,95621.0,0.001]
[1735245395912,0.011347,95623.0,95621.0,0.001]
[1735245396068,0.17998632,95622.0,95621.0,0.001]
[1735245396268,0.17998632,95622.0,95617.0,0.209166]
[1735245396269,0.18088493,95622.0,95617.0,0.209166]
[1735245396469,0.076,95622.0,95619.0,0.209162]
[1735245396671,0.0001712,95625.0,95622.0,0.209156]
[1735245396873,0.10398632,95624.0,95622.0,0.209156]
[1735245397316,0.01813825,95623.0,95622.0,0.209156]
[1735245397740,0.10398632,95624.0,95619.0,0.209162]
[1735245398150,0.10398632,95624.0,95622.0,0.209156]
[1735245398572,0.10398632,95624.0,95622.0,0.210156]
[1735245399550,0.10398632,95624.0,95622.0,0.001]
[1735245399700,0.10398632,95624.0,95622.0,0.002]
[1735245400071,0.10398632,95624.0,95622.0,0.001]
[1735245400194,0.10398632,95624.0,95620.0,0.209161]
[1735245400614,0.10398632,95624.0,95621.0,8.56e-05]
[1735245401054,0.12229577,95624.0,95621.0,8.56e-05]
[1735245401277,0.12329577,95624.0,95621.0,8.56e-05]
[1735245401485,0.12229577,95624.0,95621.0,8.56e-05]
[1735245401906,0.10515752,95624.0,95622.0,0.209156]
[1735245402827,0.10515752,95624.0,95621.0,8.56e-05]
[1735245403030,0.10415752,95624.0,95621.0,8.56e-05]
[1735245403481,0.10515752,95624.0,95622.0,0.209156]
[1735245403685,0.10415752,95624.0,95622.0,0.209156]
[1735245404098,0.10515752,95624.0,95622.0,0.209156]